fUSD/lending_fUSD_20240920
["ID","MTS","AMOUNT","RATE_DAILY","PERIOD"]
[338684595,1726872632114,-1693.9198603,0.00012892,2]
[338684596,1726872632124,-1693.9198603,0.00012893,2]
[338684597,1726872632133,-1693.9198603,0.00012894,2]
[338684598,1726872632144,-233.091813,0.00012895,2]
[338684599,1726872632154,-1693.9198603,0.00012896,2]
[338684600,1726872632163,-233.091813,0.00012896,2]
[338684601,1726872632173,-1693.9198603,0.00012897,2]
[338684602,1726872632182,-233.091813,0.00012897,2]
[338684603,1726872632192,-1693.9198603,0.00012898,2]
[338684604,1726872632204,-233.091813,0.00012898,2]
[338684605,1726872632214,-1693.9198603,0.00012899,2]
[338684606,1726872632223,-166.198302,0.000129,2]
[338684607,1726872632233,-3215.6825865,0.000129,2]
[338684608,1726872632242,-500.0,0.000129,2]
[338684609,1726872632252,-1693.9198603,0.000129,2]
[338684610,1726872632262,-165.34268013,0.000129,2]
[338684612,1726872632271,-165.34268013,0.000129,2]
[338684613,1726872632281,-165.34268013,0.000129,2]
[338684614,1726872632290,-165.34268013,0.000129,2]
[338684615,1726872632299,-340.72615337,0.000129,2]
[338684616,1726872632309,-165.34268013,0.000129,2]
[338684617,1726872632319,-165.34268013,0.000129,2]
[338684618,1726872632328,-165.34268013,0.000129,2]
[338684619,1726872632338,-165.84,0.000129,2]
[338684620,1726872632348,-491.74779355,0.000129,2]
[338684621,1726872632357,-491.74779355,0.000129,2]
[338684622,1726872632369,-491.74779355,0.000129,2]
[338684623,1726872632378,-491.74779355,0.000129,2]
[338684624,1726872632387,-491.74779355,0.000129,2]
[338684625,1726872632397,-491.74779355,0.000129,2]
[338684626,1726872632406,-491.74779355,0.000129,2]
[338684627,1726872632416,-491.74779355,0.000129,2]
[338684628,1726872632425,-491.74779355,0.000129,2]
[338684629,1726872632435,-491.74779355,0.000129,2]
[338684630,1726872632444,-491.74779355,0.000129,2]
[338684631,1726872632454,-491.74779355,0.000129,2]
[338684632,1726872632464,-491.74779355,0.000129,2]
[338684633,1726872632473,-491.74779355,0.000129,2]
[338684634,1726872632483,-491.74779355,0.000129,2]
[338684635,1726872632492,-491.74779355,0.000129,2]
[338684636,1726872632502,-491.74779355,0.000129,2]
[338684637,1726872632511,-491.74779355,0.000129,2]
[338684638,1726872632520,-491.74779355,0.000129,2]
[338684639,1726872632530,-492.24,0.000129,2]
[338684640,1726872632540,-524.85469326,0.000129,2]
[338684641,1726872632549,-524.85469326,0.000129,2]
[338684642,1726872632558,-524.85469326,0.000129,2]
[338684643,1726872632568,-524.85469326,0.000129,2]
[338684644,1726872632577,-524.85469326,0.000129,2]
[338684645,1726872632587,-524.85469326,0.000129,2]
[338684646,1726872632596,-524.85469326,0.000129,2]
[338684647,1726872632606,-524.85469326,0.000129,2]
[338684648,1726872632616,-91.95349602,0.000129,2]
[338684649,1726872632628,-432.90119724,0.000129,2]
[338684650,1726872632638,-524.85469326,0.000129,2]
[338684651,1726872632647,-322.25843551,0.000129,2]
[338684652,1726872632663,-202.59625775,0.000129,2]
[338684653,1726872632672,-524.85469326,0.000129,2]
[338684654,1726872632682,-524.85469326,0.000129,2]
[338684655,1726872632691,-524.85469326,0.000129,2]
[338684656,1726872632701,-524.85469326,0.000129,2]
[338684657,1726872632711,-524.85469326,0.000129,2]
[338684658,1726872632720,-524.85469326,0.000129,2]
[338684659,1726872632730,-233.23857449,0.000129,2]
[338684660,1726872632741,-291.61611877,0.000129,2]
[338684661,1726872632751,-65.26496077,0.000129,2]
[338684663,1726872637744,-459.58973249,0.000129,2]
[338684664,1726872637755,-525.35,0.000129,2]
[338684665,1726872637766,-500.0,0.00012973,2]
[338684666,1726872637777,-502.07381489,0.00012973,2]
[338684667,1726872637788,-229.66670146,0.00012973,2]
[338684668,1726872637806,-270.33329854,0.00012973,2]
[338684669,1726872637816,-677.75,0.00012976,2]
[338684670,1726872637826,-677.75,0.00012976,2]
[338684671,1726872637835,-677.75,0.00012976,2]
[338684672,1726872637845,-677.75,0.00012976,2]
[338684673,1726872637856,-677.75,0.00012976,2]
[338684674,1726872637865,-677.75,0.00012976,2]
[338684675,1726872637874,-677.75,0.00012976,2]
[338684676,1726872637884,-677.75,0.00012976,2]
[338684677,1726872637895,-677.75,0.00012976,2]
[338684678,1726872637904,-677.75,0.00012976,2]
[338684679,1726872637914,-677.75,0.00012976,2]
[338684680,1726872637924,-677.75,0.00012976,2]
[338684681,1726872637934,-677.75,0.00012976,2]
[338684682,1726872637945,-677.75,0.00012976,2]
[338684683,1726872637954,-677.75,0.00012976,2]
[338684684,1726872637964,-677.75,0.00012976,2]
[338684685,1726872637975,-20.67632113,0.0001298,2]
[338684686,1726872637987,-141.71367887,0.0001298,2]
[338684687,1726872637996,-113.28632113,0.00012986,2]
[338684688,1726872638008,-652.16989619,0.00012986,2]
[338684689,1726872638019,-1197.7017767,0.00012986,2]
[338684690,1726872638030,-1006.87375016,0.00012986,2]
[338684691,1726872638041,-3791.46814228,0.00012986,2]
[338684692,1726872638083,-4012.44382823,0.00012986,2]
[338684693,1726872638095,-1094.21,0.00012986,2]
[338684694,1726872638106,-283.83287331,0.00012986,2]
[338684792,1726872639228,1050.0,0.00011,2]
[338684867,1726872639987,-2778.37187532,0.00012986,2]
[338684870,1726872640000,-4580.74187796,0.00012986,2]
[338684876,1726872640048,-250.0,0.00012385,2]
[338684878,1726872640058,-1156.50009276,0.00012986,2]
[338684880,1726872640069,-409.24851166,0.00012986,2]
[338684882,1726872640080,-3482.87209679,0.00012986,2]
[338684884,1726872640091,-522.77982189,0.00012986,2]
[338685166,1726872642928,-3397.61917117,0.00012986,2]
[338685168,1726872642939,-9985.82983159,0.00012986,2]
[338685170,1726872642951,-3644.08384765,0.00012986,2]
[338685177,1726872643002,-500.0,0.00012986,2]
[338685440,1726872645861,-327.38233197,0.00012986,2]
[338685449,1726872645948,-74.10350849,0.00012986,2]
[338685665,1726872648102,323.26,0.00010617,2]
[338686205,1726872703244,500.0,0.00010764,2]
[338686206,1726872720563,500.0,0.00010764,2]
[338686207,1726872727371,500.0,0.00010764,2]
[338686208,1726872767062,10234.27,0.00012021,2]
[338686209,1726872816528,177.42,0.00010959,2]
[338686210,1726872861205,364.91,0.0001195,2]
[338686211,1726872888771,332.74,0.00011959,2]
[338686212,1726873015161,997.61,0.00012,2]
[338686213,1726873023833,250.0,0.00011949,2]
[338686214,1726873034486,250.0,0.00011949,2]
[338686219,1726873134461,362.43,0.000149,31]
[338686220,1726873134513,362.43,0.000149,31]
[338686221,1726873134573,362.43,0.000149,31]
[338686222,1726873134640,362.43,0.000149,31]
[338686223,1726873134699,362.43,0.000149,31]
[338686224,1726873134763,362.43,0.000149,31]
[338686225,1726873134819,362.43,0.000149,31]
[338686226,1726873134889,362.43,0.000149,31]
[338686227,1726873134948,362.43,0.000149,31]
[338686228,1726873135001,362.43,0.000149,31]
[338686229,1726873135061,362.43,0.000149,31]
[338686230,1726873135118,362.43,0.000149,31]
[338686231,1726873135177,362.43,0.000149,31]
[338686232,1726873135241,362.43,0.000149,31]
[338686233,1726873135308,362.43,0.000149,31]
[338686234,1726873135379,362.43,0.000149,31]
[338686237,1726873183595,343.67,0.00010013,2]
[338686240,1726873259125,1000.0,0.00011924,2]
[338686241,1726873309100,250.0,0.00011924,2]
[338686242,1726873397821,176.47,0.00010959,2]
[338686243,1726873433161,166.37,0.00011902,2]
[338686244,1726873458280,191.93,0.00011892,2]
[338686245,1726873515932,150.0,0.00011688,2]
[338686246,1726873516243,150.0,0.00012012,2]
[338686249,1726873746465,304.47,0.000149,31]
[338686250,1726873746524,304.47,0.000149,31]
[338686251,1726873746572,304.47,0.000149,31]
[338686252,1726873746643,304.47,0.000149,31]
[338686253,1726873746697,304.47,0.000149,31]
[338686254,1726873746757,304.47,0.000149,31]
[338686255,1726873746805,304.47,0.000149,31]
[338686256,1726873746927,304.47,0.000149,31]
[338686257,1726873746967,304.47,0.000149,31]
[338686258,1726873747078,304.47,0.000149,31]
[338686259,1726873747138,304.47,0.000149,31]
[338686260,1726873747180,304.47,0.000149,31]
[338686261,1726873747241,304.47,0.000149,31]
[338686262,1726873747296,304.47,0.000149,31]
[338686263,1726873747344,304.47,0.000149,31]
[338686264,1726873747408,304.47,0.000149,31]
[338686265,1726873765096,-500.0,0.00012134,2]
[338686266,1726873765117,-91.92,0.00012337,2]
[338686267,1726873769102,346.04,9.987e-05,2]
[338686268,1726873790980,200.0,0.00011892,2]
[338686278,1726873832093,-346.04,0.00012251,2]
[338686279,1726873832104,-58.08,0.00012337,2]
[338686280,1726873832114,-300.0,0.00012643,2]
[338686281,1726873832124,-10000.0,0.00012644,2]
[338686282,1726873832133,-150.0,0.00012662,2]
[338686283,1726873832145,-150.0,0.00012722,2]
[338686284,1726873832155,-155.0,0.0001273,2]
[338686285,1726873832164,-150.0,0.00012732,2]
[338686286,1726873832174,-287.66835123,0.00012737,2]
[338686287,1726873832184,-212.475234,0.00012776,2]
[338686288,1726873832193,-9747.970155,0.00012776,2]
[338686289,1726873832203,-189.283907,0.00012776,2]
[338686290,1726873832213,-4536.63,0.00012776,2]
[338686291,1726873832223,-499.99,0.00012776,2]
[338686292,1726873832233,-617.154,0.00012782,2]
[338686293,1726873832243,-166.398,0.00012782,2]
[338686294,1726873832253,-796.07,0.00012782,2]
[338686295,1726873832262,-1828.0556,0.00012786,2]
[338686296,1726873832272,-2329.39265223,0.00012786,2]
[338686298,1726873832293,-685.05424735,0.00012786,2]
[338686301,1726873832305,-398.98060042,0.00012786,2]
[338686303,1726873832314,-318.60031739,0.00012786,2]
[338686305,1726873832326,-572.13348406,0.00012786,2]
[338686331,1726873838038,-476.81295156,0.00012786,2]
[338686332,1726873838050,-371.59199,0.00012786,2]
[338686333,1726873838157,-4177.71935699,0.00012786,2]
[338686334,1726873838166,-10490.657569,0.000128,2]
[338686335,1726873838175,-5834.02264629,0.0001286,2]
[338686336,1726873838185,-150.0,0.0001287,2]
[338686337,1726873838194,-500.0,0.00012882,2]
[338686338,1726873838203,-200.0,0.00012882,2]
[338686339,1726873838211,-308.69755859,0.00012886,2]
[338686340,1726873838222,-82675.32589701,0.00012886,2]
[338686341,1726873838233,-437.70943335,0.00012886,2]
[338686342,1726873838246,-4723.73706812,0.00012886,2]
[338686343,1726873838257,-7053.78771187,0.00012886,2]
[338686344,1726873838268,-943.30260983,0.00012886,2]
[338686345,1726873838279,-1539.04003684,0.00012886,2]
[338686346,1726873838291,-255.17,0.00012886,2]
[338686347,1726873838303,-768.23091752,0.00012886,2]
[338686348,1726873838314,-409.59262913,0.00012886,2]
[338686349,1726873838326,-800.0,0.00012886,2]
[338686370,1726873838536,-404.22753487,0.00012886,2]
[338686372,1726873838548,-5000.0,0.00012886,2]
[338686380,1726873838610,-11714.8206334,0.00012886,2]
[338686382,1726873838622,-782.53154917,0.00012886,2]
[338686384,1726873838634,-276.73994888,0.00012886,2]
[338686541,1726873840078,-19808.27972165,0.00012886,2]
[338686543,1726873840090,-308.94361421,0.00012886,2]
[338686550,1726873840158,-606.945,0.00012886,2]
[338686561,1726873840255,-27038.00154989,0.00012886,2]
[338686566,1726873840298,-79453.61414426,0.00012886,2]
[338686568,1726873840311,-951.5743,0.00012886,2]
[338686570,1726873840321,-7048.5904,0.00012886,2]
[338686572,1726873840330,-1000.0,0.00012886,2]
[338686574,1726873840340,-180.9052709,0.0001289,2]
[338686576,1726873840350,-177.82207341,0.0001289,2]
[338686578,1726873840359,-156.10988812,0.0001289,2]
[338686580,1726873840371,-170.32805887,0.0001289,2]
[338686581,1726873840380,-905.7611,0.0001289,2]
[338686583,1726873840390,-45538.009,0.0001289,2]
[338686585,1726873840399,-500.0,0.0001289,2]
[338686587,1726873840409,-803.0551,0.0001289,2]
[338686589,1726873840418,-740.0578,0.0001289,2]
[338686591,1726873840428,-1290.0691,0.0001289,2]
[338686593,1726873840439,-7500.0,0.0001289,2]
[338686595,1726873840449,-177.8220734,0.00012893,2]
[338686597,1726873840458,-170.32805884,0.00012893,2]
[338686599,1726873840468,-233.091813,0.00012895,2]
[338686601,1726873840478,-233.091813,0.00012896,2]
[338686603,1726873840488,-177.8220734,0.00012897,2]
[338686605,1726873840497,-170.32805884,0.00012897,2]
[338686607,1726873840507,-233.091813,0.00012897,2]
[338686608,1726873840517,-233.091813,0.00012898,2]
[338686610,1726873840526,-180.9052709,0.000129,2]
[338686612,1726873840536,-177.8220734,0.000129,2]
[338686614,1726873840545,-156.10988812,0.000129,2]
[338686616,1726873840555,-170.32805884,0.000129,2]
[338686618,1726873840564,-150.0,0.000129,2]
[338686620,1726873840574,-684.61,0.000129,2]
[338686622,1726873840584,-300.0,0.000129,2]
[338686624,1726873840594,-300.0,0.000129,2]
[338686626,1726873840604,-428.14,0.000129,2]
[338686628,1726873840613,-300.0,0.000129,2]
[338686630,1726873840623,-428.14,0.000129,2]
[338686632,1726873840633,-8500.0,0.000129,2]
[338686634,1726873840642,-151.15624127,0.000129,2]
[338686636,1726873840651,-151.15624127,0.000129,2]
[338686638,1726873840661,-151.15624127,0.000129,2]
[338686640,1726873840670,-151.15624127,0.000129,2]
[338686642,1726873840680,-151.15624127,0.000129,2]
[338686644,1726873840689,-151.15624127,0.000129,2]
[338686646,1726873840698,-151.65,0.000129,2]
[338686648,1726873840707,-393.39331277,0.000129,2]
[338686649,1726873840717,-393.39331277,0.000129,2]
[338686651,1726873840726,-393.39331277,0.000129,2]
[338686653,1726873840735,-427.0,0.000129,2]
[338686655,1726873840745,-393.39331277,0.000129,2]
[338686657,1726873840754,-393.39331277,0.000129,2]
[338686659,1726873840764,-393.39331277,0.000129,2]
[338686661,1726873840773,-393.39331277,0.000129,2]
[338686663,1726873840782,-393.39331277,0.000129,2]
[338686665,1726873840791,-393.39331277,0.000129,2]
[338686666,1726873840800,-393.39331277,0.000129,2]
[338686668,1726873840809,-393.39331277,0.000129,2]
[338686670,1726873840819,-393.39331277,0.000129,2]
[338686672,1726873840828,-393.39331277,0.000129,2]
[338686674,1726873840837,-393.39331277,0.000129,2]
[338686676,1726873840847,-393.39331277,0.000129,2]
[338686678,1726873840856,-393.39331277,0.000129,2]
[338686680,1726873840865,-393.39331277,0.000129,2]
[338686682,1726873840877,-393.39331277,0.000129,2]
[338686684,1726873840886,-393.39331277,0.000129,2]
[338686686,1726873840897,-393.89,0.000129,2]
[338686688,1726873840906,-419.87880154,0.000129,2]
[338686690,1726873840916,-419.87880154,0.000129,2]
[338686692,1726873840925,-419.87880154,0.000129,2]
[338686693,1726873840934,-419.87880154,0.000129,2]
[338686695,1726873840944,-419.87880154,0.000129,2]
[338686698,1726873840954,-419.87880154,0.000129,2]
[338686700,1726873840963,-419.87880154,0.000129,2]
[338686702,1726873840973,-419.87880154,0.000129,2]
[338686704,1726873840983,-419.87880154,0.000129,2]
[338686706,1726873840995,-419.87880154,0.000129,2]
[338686708,1726873841004,-419.87880154,0.000129,2]
[338686710,1726873841013,-419.87880154,0.000129,2]
[338686712,1726873841022,-419.87880154,0.000129,2]
[338686714,1726873841032,-419.87880154,0.000129,2]
[338686716,1726873841042,-419.87880154,0.000129,2]
[338686718,1726873841052,-419.87880154,0.000129,2]
[338686720,1726873841062,-419.87880154,0.000129,2]
[338686722,1726873841072,-419.87880154,0.000129,2]
[338686725,1726873841083,-419.87880154,0.000129,2]
[338686727,1726873841093,-420.37,0.000129,2]
[338686729,1726873841102,-6724.58794652,0.000129,2]
[338686731,1726873841112,-359.0,0.000129,2]
[338686733,1726873841122,-358.86247812,0.000129,2]
[338686735,1726873841132,-9747.970155,0.00012935,2]
[338686736,1726873841141,-150.0,0.0001294,2]
[338686738,1726873841155,-150.0,0.00012945,2]
[338686740,1726873841168,-150.0,0.00012947,2]
[338686742,1726873841177,-150.0,0.00012964,2]
[338686744,1726873841187,-150.0,0.00012971,2]
[338686746,1726873841196,-150.0,0.00012972,2]
[338686748,1726873841206,-500.0,0.00012973,2]
[338686749,1726873841215,-500.0,0.00012973,2]
[338686750,1726873841224,-500.0,0.00012973,2]
[338686751,1726873841234,-615.09435848,0.00012976,2]
[338686752,1726873841243,-154.19,0.00012976,2]
[338686753,1726873841253,-2000.0,0.0001298,2]
[338686754,1726873841262,-154.19,0.0001298,2]
[338686755,1726873841271,-154.19,0.0001298,2]
[338686756,1726873841281,-2000.0,0.00012986,2]
[338686757,1726873841292,-200.0,0.00012986,2]
[338686758,1726873841302,-264750.48044475,0.00012986,2]
[338686759,1726873841315,-1000.0,0.00012986,2]
[338686760,1726873841325,-161.22266981,0.00012986,2]
[338686761,1726873841334,-500.0,0.00012988,2]
[338686762,1726873841344,-485.38272833,0.00012988,2]
[338686763,1726873841353,-1879.9348127,0.00012989,2]
[338686764,1726873841363,-52501.3661772,0.00012989,2]
[338686766,1726873841373,-984.7334699,0.00012989,2]
[338686767,1726873841383,-615.09435848,0.0001299,2]
[338686769,1726873841393,-154.19,0.0001299,2]
[338686771,1726873841404,-716307.2568204,0.0001299,3]
[338686773,1726873841413,-5476.4174382,0.0001299,2]
[338686775,1726873841422,-615.09435848,0.0001299,2]
[338686777,1726873841432,-154.19,0.0001299,2]
[338686779,1726873841443,-154.19,0.0001299,2]
[338686781,1726873841452,-154.19,0.0001299,2]
[338686783,1726873841461,-154.19,0.0001299,2]
[338686785,1726873841471,-154.19,0.0001299,2]
[338686787,1726873841479,-154.19,0.0001299,2]
[338686789,1726873841488,-154.19,0.0001299,2]
[338686791,1726873841497,-154.19,0.0001299,2]
[338686793,1726873841507,-154.19,0.0001299,2]
[338686795,1726873841518,-154.19,0.0001299,2]
[338686797,1726873841527,-154.19,0.0001299,2]
[338686799,1726873841538,-154.19,0.0001299,2]
[338686801,1726873841548,-154.19,0.0001299,2]
[338686803,1726873841557,-209.08963943,0.0001299,2]
[338686805,1726873841567,-735.74065847,0.0001299,2]
[338686807,1726873841576,-292.99342156,0.0001299,2]
[338686809,1726873841585,-49934.75642792,0.0001299,2]
[338686811,1726873841594,-1000.0,0.00012991,2]
[338686813,1726873841603,-1000.0,0.00012991,2]
[338686815,1726873841613,-1000.0,0.00012991,2]
[338686817,1726873841623,-1000.0,0.00012991,2]
[338686819,1726873841632,-1000.0,0.00012991,2]
[338686820,1726873841642,-1000.0,0.00012991,2]
[338686822,1726873841651,-1000.0,0.00012991,2]
[338686824,1726873841660,-1000.0,0.00012991,2]
[338686826,1726873841669,-1000.0,0.00012991,2]
[338686828,1726873841678,-1000.0,0.00012991,2]
[338686830,1726873841687,-1000.0,0.00012991,2]
[338686832,1726873841696,-1000.0,0.00012991,2]
[338686834,1726873841705,-1000.0,0.00012991,2]
[338686836,1726873841714,-1000.0,0.00012991,2]
[338686838,1726873841723,-1000.0,0.00012991,2]
[338686840,1726873841733,-1000.0,0.00012991,2]
[338686842,1726873841742,-1000.0,0.00012991,2]
[338686844,1726873841751,-1000.0,0.00012991,2]
[338686846,1726873841761,-1000.0,0.00012991,2]
[338686848,1726873841770,-1000.0,0.00012991,2]
[338686850,1726873841780,-1000.0,0.00012991,2]
[338686852,1726873841789,-1000.0,0.00012991,2]
[338686854,1726873841799,-1000.0,0.00012991,2]
[338686856,1726873841808,-1000.0,0.00012991,2]
[338686858,1726873841818,-1000.0,0.00012991,2]
[338686860,1726873841827,-1000.0,0.00012991,2]
[338686862,1726873841836,-565.0,0.00012991,2]
[338686863,1726873841845,-1000.0,0.00012991,2]
[338686865,1726873841854,-1000.0,0.00012991,2]
[338686867,1726873841864,-1000.0,0.00012991,2]
[338686869,1726873841873,-1000.0,0.00012991,2]
[338686871,1726873841883,-1000.0,0.00012991,2]
[338686873,1726873841893,-1000.0,0.00012991,2]
[338686875,1726873841904,-1000.0,0.00012991,2]
[338686877,1726873841913,-1000.0,0.00012991,2]
[338686879,1726873841923,-185.068224,0.00012991,2]
[338686881,1726873841933,-185.068224,0.00012991,2]
[338686883,1726873841944,-1621.4468602,0.00012991,2]
[338686885,1726873841954,-1362.9589078,0.00012991,2]
[338686887,1726873841964,-1104.4709553,0.00012991,2]
[338686890,1726873841974,-845.9830028,0.00012991,2]
[338686891,1726873841983,-4726.4442912,0.00012991,2]
[338686893,1726873841993,-3976.4711442,0.00012991,2]
[338686895,1726873842003,-3226.4979972,0.00012991,2]
[338686897,1726873842012,-2476.5248502,0.00012991,2]
[338686899,1726873842021,-45326.0642559,0.00012991,2]
[338686901,1726873842031,-38150.7623347,0.00012991,2]
[338686903,1726873842040,-30975.4604134,0.00012991,2]
[338686905,1726873842050,-23800.1584921,0.00012991,2]
[338686906,1726873842060,-850.1510681,0.00012991,2]
[338686908,1726873842070,-715.5686662,0.00012991,2]
[338686910,1726873842080,-580.9862644,0.00012991,2]
[338686912,1726873842089,-446.4038626,0.00012991,2]
[338686914,1726873842100,-2398.98490248,0.00012999,2]
[338686916,1726873842110,-1000.0,0.00012999,2]
[338686918,1726873842120,-572.1335,0.00012999,2]
[338686920,1726873842129,-2270.0,0.00012999,2]
[338686922,1726873842138,-2000.0,0.00012999,2]
[338686924,1726873842150,-186960.62847146,0.00013,2]
[338686926,1726873842162,-5434914.52764204,0.00013,2]
[338686929,1726873842177,-264933.31058345,0.00013,2]
[338686931,1726873842188,-1111.06037394,0.00013,2]
[338687043,1726873843195,-457.2784292,0.00012644,2]
[338687058,1726873843329,-6451.65765116,0.00012644,2]
[338687060,1726873843339,-1723.37143363,0.00013,2]
[338687062,1726873843351,-15781.24999999,0.00013,2]
[338687310,1726873845958,-796.67025501,0.00013,2]
[338687323,1726873846071,-1956.77125,0.00013,2]
[338687347,1726873846286,-335.01622342,0.00013,2]
[338687664,1726873849485,500.0,0.00010764,2]
[338688274,1726873885926,500.0,0.00010764,2]
[338688275,1726873932827,500.0,0.00010764,2]
[338688276,1726874004569,338.01,0.00011996,2]
[338688277,1726874035165,153.19,0.00011996,2]
[338688278,1726874043361,234.45,0.00011979,2]
[338688279,1726874049537,500.0,0.00012,2]
[338688280,1726874049787,500.0,0.00012,2]
[338688281,1726874050272,500.0,0.00012,2]
[338688282,1726874050563,500.0,0.00012,2]
[338688283,1726874051054,500.0,0.00012,2]
[338688284,1726874051309,500.0,0.00012,2]
[338688285,1726874051778,553.2,0.00012,2]
[338688286,1726874052056,522.37,0.00012,2]
[338688292,1726874316006,330.99,9.919e-05,2]
[338688293,1726874319278,840.0,0.00011822,2]
[338688295,1726874358951,255.78,0.000149,31]
[338688296,1726874359000,255.78,0.000149,31]
[338688297,1726874359124,255.78,0.000149,31]
[338688298,1726874359186,255.78,0.000149,31]
[338688299,1726874359238,255.78,0.000149,31]
[338688300,1726874359354,255.78,0.000149,31]
[338688301,1726874359415,255.78,0.000149,31]
[338688302,1726874359484,255.78,0.000149,31]
[338688303,1726874359540,255.78,0.000149,31]
[338688304,1726874359609,255.78,0.000149,31]
[338688305,1726874359666,255.78,0.000149,31]
[338688306,1726874359824,255.78,0.000149,31]
[338688307,1726874359873,255.78,0.000149,31]
[338688308,1726874359929,255.78,0.000149,31]
[338688309,1726874359992,255.78,0.000149,31]
[338688310,1726874360051,255.78,0.000149,31]
[338688314,1726874417294,250.0,0.00011866,2]
[338688315,1726874442664,1050.0,0.00011,2]
[338688316,1726874444195,170.1,0.00011887,2]
[338688317,1726874537313,159.73,0.00011834,2]
[338688318,1726874538040,159.73,0.00011894,2]
[338688319,1726874587516,154.8,0.00010959,2]
[338688320,1726874587769,234.45,0.00011837,2]
[338688321,1726874648400,409.2,0.00011859,2]
[338688322,1726874754286,442.6668699,6.94e-05,2]
[338688325,1726874856927,314.44,9.909e-05,2]
[338688326,1726874868512,328.0,0.00011821,2]
[338688332,1726874947142,-500.0,0.00012134,2]
[338688333,1726874947164,-90.13725481,0.00012173,2]
[338688337,1726874971038,214.87,0.000149,31]
[338688338,1726874971098,214.87,0.000149,31]
[338688339,1726874971157,214.87,0.000149,31]
[338688340,1726874971274,214.87,0.000149,31]
[338688341,1726874971338,214.87,0.000149,31]
[338688342,1726874971393,214.87,0.000149,31]
[338688343,1726874971451,214.87,0.000149,31]
[338688344,1726874971526,214.87,0.000149,31]
[338688345,1726874971574,214.87,0.000149,31]
[338688346,1726874971630,214.87,0.000149,31]
[338688347,1726874971740,214.87,0.000149,31]
[338688348,1726874971776,214.87,0.000149,31]
[338688349,1726874971818,214.87,0.000149,31]
[338688350,1726874971879,214.87,0.000149,31]
[338688351,1726874971941,214.87,0.000149,31]
[338688352,1726874971991,214.87,0.000149,31]
[338688353,1726874973083,500.0,0.00010764,2]
[338688366,1726875032241,-500.0,0.00012134,2]
[338688367,1726875032251,-224.30274519,0.00012173,2]
[338688368,1726875032261,-2067.0,0.00012603,2]
[338688369,1726875032270,-3496.3767514,0.00012625,2]
[338688370,1726875032283,-1250.96760414,0.00012625,2]
[338688371,1726875032292,-308.63472768,0.00012684,2]
[338688372,1726875032301,-183.34653495,0.00012684,2]
[338688373,1726875032311,-300.0,0.00012689,2]
[338688374,1726875032320,-8136.17994782,0.0001269,2]
[338688375,1726875032352,-2595.45439401,0.0001269,2]
[338688376,1726875032464,-682.49820459,0.0001269,2]
[338688377,1726875032475,-544.0998858,0.0001269,2]
[338688378,1726875032487,-942.89298596,0.0001269,2]
[338688385,1726875038227,-8057.75287987,0.0001269,2]
[338688386,1726875038237,-150.0,0.00012699,2]
[338688387,1726875038247,-190.98665055,0.000127,2]
[338688388,1726875038256,-79311.4503,0.000127,2]
[338688389,1726875038265,-176.81501871,0.000127,2]